bitfinex-derivatives/quotes_SOLF0:USTF0_20250310
["timestamp","ask_amount","ask_price","bid_price","bid_amount"]
[1741622050373,303.52616697,122.78,122.7,44.11827298]
[1741622050566,303.52616697,122.78,122.71,3.9586]
[1741622050767,8.1501,122.74,122.71,3.9586]
[1741622050966,34.38616697,122.76,122.67,48.0707]
[1741622051270,34.38616697,122.74,122.68,3.9335]
[1741622051469,0.05800616,122.73,122.7,0.05937223]
[1741622053077,8.1509,122.72,122.7,0.05937223]
[1741622053375,0.05800616,122.73,122.7,0.05937223]
[1741622053577,8.1515,122.71,122.7,0.05937223]
[1741622054070,0.05800616,122.73,122.7,0.05937223]
[1741622054578,0.05800616,122.73,122.72,8.1509]
[1741622054779,0.05800616,122.73,122.71,44.0]
[1741622055282,8.20870616,122.73,122.71,44.0]
[1741622055668,0.05800616,122.73,122.71,44.0]
[1741622056177,0.05800616,122.73,122.7,0.05937223]
[1741622057578,8.1509,122.72,122.7,0.05937223]
[1741622057771,0.05800616,122.73,122.7,0.05937223]
[1741622058271,0.05800616,122.73,122.7,8.21117223]
[1741622058573,0.05800616,122.73,122.7,0.05937223]
[1741622058777,0.05800616,122.73,122.7,44.03937223]
[1741622059481,303.52616697,122.78,122.7,44.03937223]
[1741622059669,34.38616697,122.78,122.7,44.03937223]
[1741622059874,8.1466,122.79,122.7,78.36616697]
[1741622060071,34.38616697,122.8,122.7,78.36616697]
[1741622060280,34.38616697,122.8,122.7,43.98]
[1741622060477,34.38616697,122.78,122.7,43.98]
[1741622060673,34.44797365,122.76,122.74,0.05615576]
[1741622061482,34.38616697,122.73,122.67,4.0307]
[1741622061775,34.38616697,122.71,122.63,4.1951]
[1741622061982,34.38616697,122.69,122.63,8.2826]
[1741622062180,8.1542,122.67,122.66,0.05267885]
[1741622062776,42.54036697,122.67,122.66,0.05267885]
[1741622062976,42.54036697,122.67,122.6,52.1186]
[1741622062977,34.38616697,122.67,122.6,43.96]
[1741622063175,34.38616697,122.65,122.59,8.5234]
[1741622063370,43.96,122.67,122.59,8.5234]
[1741622063371,78.88246697,122.67,122.59,8.5234]
[1741622063570,8.156,122.65,122.59,8.5234]
[1741622063779,303.32616697,122.69,122.59,8.5234]
[1741622064076,8.1547,122.67,122.59,8.5234]
[1741622064285,0.05342859,122.65,122.63,0.0561914]
[1741622069883,34.92246697,122.73,122.63,43.9961914]
[1741622070079,269.0,122.74,122.64,34.38616697]
[1741622070282,0.5353,122.78,122.66,34.38616697]
[1741622070586,34.38616697,122.76,122.67,43.92]
[1741622070884,34.38616697,122.76,122.68,8.1531]
[1741622071083,0.05498589,122.73,122.7,0.05830517]
[1741622071484,8.1515,122.71,122.7,0.05830517]
[1741622072282,8.1512,122.72,122.7,0.05830517]
[1741622072491,0.05498589,122.73,122.7,0.05830517]
[1741622072684,8.1512,122.72,122.7,0.05830517]
[1741622072889,0.05498589,122.73,122.7,0.05830517]
[1741622073187,8.20538589,122.73,122.7,0.05830517]
[1741622073383,0.05498589,122.73,122.7,0.05830517]
[1741622074497,8.1515,122.71,122.7,0.05830517]
[1741622074991,8.1539,122.68,122.65,8.2388]
[1741622075191,34.38616697,122.72,122.65,8.2388]
[1741622075394,78.28616697,122.74,122.65,8.2388]
[1741622075591,235.9,122.77,122.68,43.9]
[1741622075890,43.9,122.77,122.68,43.9]
[1741622076090,0.06257343,122.74,122.71,0.0531205]
[1741622077293,8.1509,122.72,122.71,0.0531205]
[1741622077488,8.1509,122.72,122.71,2.05e-05]
[1741622077792,34.38616697,122.72,122.63,48.159]
[1741622077988,34.38616697,122.7,122.61,8.2165]
[1741622078794,0.05705589,122.67,122.65,0.05684463]
[1741622079189,0.0516132,122.67,122.66,8.1549]
[1741622079389,226.38616697,122.76,122.65,0.05684463]
[1741622079693,8.1505,122.73,122.69,8.1525]
[1741622080294,34.38616697,122.76,122.64,78.26616697]
[1741622080488,0.05216871,122.72,122.7,0.05166707]
[1741622081492,8.20356871,122.72,122.7,0.05166707]
[1741622081986,0.05216871,122.72,122.7,0.05166707]
[1741622084394,8.1515,122.71,122.7,0.05166707]
[1741622085495,34.43833568,122.72,122.64,4.1132]
[1741622085702,34.38616697,122.72,122.64,8.3916]
[1741622085901,8.1537,122.68,122.65,8.1552]
[1741622086200,43.84,122.73,122.64,8.3916]
[1741622086500,0.05372454,122.7,122.67,8.21289703]
[1741622086899,0.05372454,122.7,122.69,8.1529]
[1741622087105,78.22616697,122.76,122.68,43.84]
[1741622087306,78.22616697,122.76,122.68,105.84]
[1741622087604,8.1521,122.71,122.68,105.84]
[1741622088009,78.22616697,122.76,122.68,105.84]
[1741622088204,34.38616697,122.76,122.68,105.84]
[1741622088405,0.05558785,122.73,122.71,0.06001066]
[1741622088907,8.1509,122.72,122.71,0.06001066]
[1741622089519,78.20616697,122.72,122.64,8.3916]
[1741622089709,34.38616697,122.69,122.64,4.2784]
[1741622090107,8.1555,122.65,122.63,4.1566]
[1741622090411,34.38616697,122.69,122.63,4.1566]
[1741622090713,0.05312564,122.65,122.63,4.21359118]
[1741622093417,0.05312564,122.65,122.64,8.1562]
[1741622094211,34.38616697,122.73,122.63,4.21359118]
[1741622094416,8.1536,122.68,122.63,4.1566]
[1741622094914,34.38616697,122.71,122.64,8.1557]
[1741622095112,8.1532,122.69,122.63,4.1566]
[1741622095309,0.05819508,122.69,122.66,0.06249986]
[1741622095710,0.05819508,122.69,122.66,8.21699986]
[1741622095905,0.05819508,122.69,122.66,0.06249986]
[1741622096517,45.63864766,122.75,122.66,4.15989986]
[1741622096706,45.63864766,122.75,122.66,4.0974]
[1741622096912,45.63864766,122.75,122.67,4.2573]
[1741622096913,34.38616697,122.75,122.67,4.2573]
[1741622097110,34.38616697,122.75,122.68,8.1532]
[1741622097511,34.38616697,122.75,122.67,4.2573]
[1741622097813,0.05719981,122.72,122.67,4.2573]
[1741622098011,0.05719981,122.72,122.68,0.05140192]
[1741622098717,8.1529,122.69,122.68,0.05140192]
[1741622098919,0.05719981,122.72,122.68,0.05140192]
[1741622099815,8.1525,122.7,122.68,0.05140192]
[1741622100016,0.05719981,122.72,122.68,0.05140192]
[1741622100418,43.81719981,122.72,122.68,1.92e-06]
[1741622100724,34.38616697,122.69,122.62,0.80468]
[1741622100922,34.38616697,122.64,122.62,0.80468]
[1741622101518,8.1568,122.63,122.62,0.80468]
[1741622101716,0.062372,122.64,122.62,0.85894016]
[1741622104822,8.1568,122.63,122.62,0.85894016]
[1741622105621,0.062372,122.64,122.62,0.85894016]
[1741622106522,268.96,122.7,122.62,0.85894016]
[1741622106719,268.96,122.7,122.63,7.9827]
[1741622107217,8.1539,122.68,122.65,8.1552]
[1741622107421,34.38616697,122.72,122.63,7.9827]
[1741622107822,8.20505998,122.69,122.66,0.05775013]
[1741622108018,0.05175998,122.69,122.66,0.05775013]
[1741622108622,8.1542,122.67,122.66,0.05775013]
[1741622110020,8.1542,122.67,122.66,5.013e-05]
[1741622110227,34.38616697,122.68,122.62,0.80468]
[1741622110427,34.38616697,122.65,122.62,0.80468]
[1741622110826,34.38616697,122.63,122.56,4.2734]
[1741622111029,34.38616697,122.63,122.52,122.37961567]
[1741622111030,34.38616697,122.61,122.53,4.1943]
[1741622111330,0.05570187,122.58,122.56,0.05467119]
[1741622113126,8.1608,122.57,122.56,0.05467119]
[1741622113630,0.05570187,122.58,122.56,0.05467119]
[1741622114328,8.1608,122.57,122.56,0.05467119]
[1741622115928,0.05570187,122.58,122.53,4.1943]
[1741622117225,8.21620187,122.58,122.54,0.05303027]
[1741622117432,0.05570187,122.58,122.54,0.05303027]
[1741622118731,8.21610187,122.58,122.54,0.05303027]
[1741622118922,0.05570187,122.58,122.54,0.05303027]
[1741622119327,0.05570187,122.58,122.57,8.1608]
[1741622119525,0.05570187,122.58,122.54,0.05303027]
[1741622122338,8.1612,122.57,122.54,8.21553027]
[1741622122639,0.05570187,122.58,122.54,0.05303027]
[1741622123033,0.05570187,122.58,122.54,43.73303027]
[1741622123234,0.05570187,122.58,122.55,4.2418]
[1741622124725,8.21620187,122.58,122.55,12.4035]
[1741622124930,0.05570187,122.58,122.55,4.2418]
[1741622125127,8.21590187,122.58,122.55,4.2418]
[1741622125436,0.05570187,122.58,122.55,4.2418]
[1741622125730,8.1612,122.57,122.55,4.2418]
[1741622125937,0.05570187,122.58,122.55,4.2418]
[1741622126837,8.21620187,122.58,122.55,4.2418]
[1741622127139,0.05570187,122.58,122.55,4.2418]
[1741622127934,0.05570187,122.58,122.56,8.1615]
[1741622128236,0.05570187,122.58,122.55,4.2418]
[1741622128432,0.05570187,122.58,122.56,8.1615]
[1741622128634,0.05570187,122.58,122.55,4.2418]
[1741622129534,0.05570187,122.58,122.56,8.1612]
[1741622129929,0.05570187,122.58,122.55,4.2418]
[1741622130137,0.05570187,122.58,122.57,8.1608]
[1741622130527,0.05570187,122.58,122.55,4.2418]
[1741622130935,8.1622,122.55,122.54,0.05303027]
[1741622133740,8.1652,122.51,122.48,3.9662]
[1741622133945,34.38616697,122.55,122.48,3.9662]
[1741622134235,34.38616697,122.53,122.46,3.9456]
[1741622134431,43.62,122.52,122.46,3.9456]
[1741622134931,8.2220879,122.5,122.48,0.05593886]
[1741622135138,0.0561879,122.5,122.48,0.05593886]
[1741622135331,8.1662,122.49,122.48,0.05593886]
[1741622136437,8.1677,122.47,122.44,4.0155]
[1741622137137,34.38616697,122.51,122.44,12.1846]
[1741622137343,34.38616697,122.51,122.44,4.0155]
[1741622137640,0.05225811,122.49,122.46,0.05892387]
[1741622138245,8.21885811,122.49,122.46,0.05892387]
[1741622138541,0.05225811,122.49,122.46,0.05892387]
[1741622139042,43.62,122.55,122.46,0.05892387]
[1741622139343,43.62,122.55,122.44,4.0155]
[1741622139647,8.1646,122.52,122.47,8.167]
[1741622139940,43.62,122.55,122.44,4.0155]
[1741622140141,0.06205181,122.51,122.49,8.1657]
[1741622140438,0.06205181,122.51,122.46,43.62]
[1741622140639,0.06205181,122.51,122.49,0.05583068]
[1741622140941,78.00616697,122.57,122.49,0.05583068]
[1741622141138,78.00616697,122.57,122.5,8.1654]
[1741622141139,8.1626,122.55,122.5,8.1654]
[1741622141341,8.1626,122.55,122.48,4.0828]
[1741622141540,43.62,122.57,122.48,4.0828]
[1741622142037,0.05659807,122.54,122.51,0.05662795]
[1741622142943,8.1642,122.52,122.51,0.05662795]
[1741622143838,8.1638,122.53,122.51,0.05662795]
[1741622144040,0.05659807,122.54,122.51,0.05662795]
[1741622144443,8.1639,122.53,122.51,0.05662795]
[1741622144642,0.05659807,122.54,122.51,0.05662795]
[1741622145040,8.1642,122.52,122.51,0.05662795]
[1741622145243,77.98616697,122.53,122.43,77.98616697]
[1741622145439,77.98616697,122.53,122.45,4.1396]
[1741622145946,77.98616697,122.53,122.45,8.4358]
[1741622146345,0.05516208,122.5,122.48,0.05447561]
[1741622146546,8.1665,122.49,122.48,0.05447561]
[1741622147852,8.22096208,122.5,122.48,0.05447561]
[1741622148152,0.05516208,122.5,122.48,0.05447561]
[1741622148647,34.38616697,122.55,122.48,0.05447561]
[1741622148951,8.1641,122.53,122.47,43.58]
[1741622149148,77.96616697,122.57,122.49,8.1658]
[1741622149348,8.1643,122.52,122.47,43.58]
[1741622149847,0.05451987,122.51,122.48,0.05907747]
[1741622150052,34.38616697,122.57,122.47,77.96616697]
[1741622150253,34.38616697,122.57,122.49,8.1658]
[1741622150950,8.1647,122.52,122.47,43.58]
[1741622151151,0.05337902,122.54,122.47,43.58]
[1741622151346,34.38616697,122.53,122.48,0.06174216]
[1741622151654,0.05992172,122.52,122.48,0.06174216]
[1741622152452,8.1657,122.5,122.48,0.06174216]
[1741622152850,0.05992172,122.52,122.48,0.06174216]
[1741622153151,0.05992172,122.52,122.48,8.22804216]
[1741622153550,8.22452172,122.52,122.48,8.22804216]
[1741622153751,8.22452172,122.52,122.48,0.06174216]
[1741622153951,0.05992172,122.52,122.48,43.62174216]
[1741622154658,0.05992172,122.52,122.48,0.06174216]
[1741622155547,0.05992172,122.52,122.49,8.1657]
[1741622155746,0.05992172,122.52,122.48,0.06174216]
[1741622156455,0.05992172,122.52,122.49,43.54]
[1741622156648,0.05992172,122.52,122.49,47.6197]
[1741622157156,0.05992172,122.52,122.5,8.1651]
[1741622157354,0.05992172,122.52,122.49,47.6197]
[1741622157551,77.92616697,122.57,122.49,47.6197]
[1741622157552,8.1625,122.55,122.49,47.6197]
[1741622157745,43.54,122.57,122.49,47.6197]
[1741622157957,8.1637,122.53,122.49,47.6197]
[1741622158260,77.92616697,122.57,122.49,55.7855]
[1741622158462,8.1652,122.51,122.49,4.0797]
[1741622158654,0.05639715,122.54,122.52,0.06061318]
[1741622158863,34.38616697,122.55,122.49,4.0797]
[1741622159059,0.05524967,122.54,122.52,0.05957315]
[1741622159761,8.1635,122.53,122.52,0.05957315]
[1741622160364,77.90616697,122.53,122.45,70.4358]
[1741622160559,77.90616697,122.53,122.45,78.6043]
[1741622160757,8.1677,122.47,122.45,70.4358]
[1741622161267,8.1674,122.48,122.45,70.4358]
[1741622161463,0.05270067,122.47,122.45,70.49281506]
[1741622161968,77.90616697,122.53,122.45,114.01281506]
[1741622162161,43.52,122.53,122.45,113.9558]
[1741622162466,8.1665,122.49,122.45,113.9558]
[1741622162661,77.90616697,122.53,122.45,122.1242]
[1741622162866,77.90616697,122.53,122.45,113.9558]
[1741622163064,8.1676,122.47,122.45,70.4358]
[1741622163366,34.38616697,122.51,122.45,70.498471]
[1741622163566,0.05493834,122.47,122.45,70.498471]
[1741622163768,0.05493834,122.47,122.45,78.666871]
[1741622163958,8.22273834,122.47,122.45,0.062671]
[1741622164157,0.05493834,122.47,122.46,8.1682]
[1741622164367,0.05493834,122.47,122.45,0.062671]
[1741622164765,0.05493834,122.47,122.45,8.231171]
[1741622165571,0.05493834,122.47,122.45,0.062671]
[1741622166167,8.1682,122.46,122.45,0.062671]
[1741622169466,0.05493834,122.47,122.45,0.062671]
[1741622169872,0.05493834,122.47,122.46,8.1682]
[1741622170073,0.05493834,122.47,122.45,62.062671]
[1741622170276,0.05493834,122.47,122.45,0.062671]
[1741622170472,8.22273834,122.47,122.45,0.062671]
[1741622170666,0.05493834,122.47,122.45,0.062671]
[1741622171069,21.66518758,122.47,122.45,0.062671]
[1741622171875,21.66518758,122.47,122.37,47.5679]
[1741622172072,21.61024924,122.45,122.37,4.1079]
[1741622172571,21.61024924,122.45,122.41,8.1709]
[1741622172775,44.3005,122.48,122.38,21.61024924]
[1741622172776,21.61024924,122.47,122.38,21.61024924]
[1741622172979,0.05725696,122.44,122.42,0.0555747]
[1741622173166,21.61024924,122.42,122.34,74.4504]
[1741622173476,21.61024924,122.42,122.34,70.1697]
[1741622173671,21.61024924,122.42,122.34,74.4504]
[1741622173880,43.46,122.43,122.32,87.9934487]
[1741622173881,21.61024924,122.38,122.32,87.9934487]
[1741622174282,0.0616675,122.36,122.35,8.1754]
[1741622174481,21.61024924,122.4,122.32,87.9934487]
[1741622174777,0.05533845,122.37,122.34,0.06182091]
[1741622175376,0.05533845,122.37,122.34,8.23772091]
[1741622175679,0.05533845,122.37,122.34,0.06182091]
[1741622175873,0.05533845,122.37,122.35,8.1751]
[1741622176075,0.05533845,122.37,122.34,0.06182091]
[1741622176874,0.05533845,122.37,122.36,8.1748]
[1741622177178,43.46,122.41,122.34,0.06182091]
[1741622177480,34.6229112,122.4,122.34,8.1758]
[1741622177779,34.6229112,122.4,122.31,74.3923]
[1741622178178,0.05295963,122.37,122.34,0.05337221]
[1741622179074,0.05295963,122.37,122.34,8.22917221]
[1741622179480,0.05295963,122.37,122.34,0.05337221]
[1741622179671,51.66745963,122.37,122.34,0.05337221]
[1741622179877,34.6229112,122.36,122.34,0.05337221]
[1741622180078,34.6229112,122.36,122.25,8.2593]
[1741622180278,8.1779,122.32,122.27,8.1807]
[1741622180578,43.46,122.33,122.25,8.2593]
[1741622181375,0.05452084,122.3,122.28,0.05261573]
[1741622181577,43.44,122.34,122.28,0.05261573]
[1741622181775,34.6229112,122.36,122.28,0.05261573]
[1741622181983,42.7980112,122.36,122.25,8.2593]
[1741622182186,34.6229112,122.36,122.26,4.0557]
[1741622182684,34.6229112,122.36,122.27,62.0]
[1741622182881,0.0621067,122.32,122.3,0.05925704]
[1741622186789,8.1782,122.31,122.3,0.05925704]
[1741622187384,34.6850179,122.32,122.25,8.2593]
[1741622187684,8.1801,122.29,122.25,8.2593]
[1741622187884,34.6229112,122.3,122.25,8.2593]
[1741622188186,43.42,122.29,122.25,4.3219]
[1741622188389,34.6229112,122.28,122.23,4.0346]
[1741622188585,8.1812,122.27,122.26,0.05470549]
[1741622188984,34.67428721,122.28,122.21,4.3357]
[1741622189185,34.6229112,122.25,122.18,8.3703]
[1741622189387,34.6229112,122.23,122.15,4.1551]
[1741622189581,34.6229112,122.21,122.14,8.3703]
[1741622189785,34.6229112,122.19,122.14,8.3703]
[1741622189984,34.6229112,122.19,122.12,4.1551]
[1741622189985,43.42,122.18,122.12,4.1551]
[1741622190192,43.48147005,122.18,122.15,0.05364489]
[1741622190792,0.06147005,122.18,122.15,0.05364489]
[1741622191295,43.42,122.23,122.15,0.05364489]
[1741622191688,43.42,122.23,122.13,78.0429112]
[1741622192195,43.42,122.23,122.14,62.0]
[1741622192495,0.05477093,122.19,122.17,0.06000462]
[1741622192888,8.1843,122.22,122.17,0.06000462]
[1741622193088,8.1843,122.22,122.17,4.39650462]
[1741622193391,78.0429112,122.23,122.17,4.39650462]
[1741622193588,43.42,122.23,122.17,4.39650462]
[1741622193989,8.1847,122.22,122.17,4.39650462]
[1741622194192,0.05943929,122.21,122.17,4.39650462]
[1741622195489,8.24433929,122.21,122.17,4.39650462]
[1741622195792,0.05943929,122.21,122.17,4.39650462]
[1741622196193,8.24473929,122.21,122.17,4.39650462]
[1741622196796,0.05943929,122.21,122.17,4.39650462]
[1741622196995,8.1863,122.19,122.17,4.39650462]
[1741622197191,34.68235049,122.21,122.17,0.06000462]
[1741622197397,34.6229112,122.19,122.17,0.06000462]
[1741622197591,8.1869,122.18,122.17,0.06000462]
[1741622198694,8.1902,122.13,122.12,8.2525]
[1741622198902,34.6229112,122.16,122.1,4.057]
[1741622199197,78.0429112,122.16,122.08,3.952]
[1741622199398,8.1914,122.12,122.08,3.952]
[1741622199692,78.0429112,122.16,122.08,3.952]
[1741622199893,34.6229112,122.14,122.08,3.952]
[1741622200095,0.0624384,122.11,122.09,0.06291112]
[1741622202598,8.1923,122.1,122.09,0.06291112]
[1741622203294,307.0829112,122.1,121.95,462.0]
[1741622203499,34.6229112,122.08,121.99,4.2582]
[1741622203699,78.0229112,122.08,121.99,4.2582]
[1741622203901,8.1961,122.05,122.0,8.1986]
[1741622204203,34.6229112,122.06,121.99,4.2582]
[1741622204394,34.68012094,122.04,122.01,0.05532551]
[1741622204995,8.1975,122.03,122.01,0.05532551]
[1741622205203,78.08012094,122.04,122.01,0.05532551]
[1741622205699,43.45720974,122.04,122.01,0.05532551]
[1741622205900,0.05720974,122.04,122.01,0.05532551]
[1741622206903,8.25370974,122.04,122.01,0.05532551]
[1741622207400,0.05720974,122.04,122.01,0.05532551]
[1741622208097,8.1976,122.02,122.01,0.05532551]
[1741622208298,0.05720974,122.04,122.01,0.05532551]
[1741622208500,8.1976,122.03,122.01,0.05532551]
[1741622209195,34.68012094,122.04,122.01,0.05532551]
[1741622209696,0.05720974,122.04,122.01,0.05532551]
[1741622211006,0.05720974,122.04,122.01,8.25302551]
[1741622211206,0.05720974,122.04,122.01,0.05532551]
[1741622212103,0.05720974,122.04,122.01,4.23412551]
[1741622212503,8.25390974,122.04,122.01,4.23412551]
[1741622212902,0.05720974,122.04,122.01,12.43192551]
[1741622213098,0.05720974,122.04,122.01,4.23412551]
[1741622213497,0.05720974,122.04,122.03,8.197]
[1741622213707,0.05720974,122.04,122.01,8.22042551]
[1741622213898,270.0,122.1,122.01,8.22042551]
[1741622213899,304.6229112,122.1,122.01,8.22042551]
[1741622214100,270.0,122.1,122.01,8.1651]
[1741622214502,278.1926,122.1,122.01,8.1651]
[1741622215099,0.0627292,122.07,122.06,8.1945]
[1741622215405,34.6229112,122.12,122.05,43.4]
[1741622215601,34.6229112,122.14,122.08,8.1932]
[1741622215803,44.82558683,122.19,122.06,38.7599112]
[1741622215994,34.6229112,122.16,122.07,12.4474]
[1741622216194,8.1926,122.1,122.07,4.2534]
[1741622216713,8.1929,122.09,122.07,4.30819082]
[1741622217011,0.05383907,122.1,122.07,4.30819082]
[1741622217207,34.67675027,122.1,122.07,0.05479082]
[1741622217407,8.1935,122.09,122.07,0.05479082]
[1741622217908,34.67675027,122.1,122.07,0.05479082]
[1741622218602,34.6229112,122.08,121.95,34.6229112]
[1741622218805,34.67675027,122.1,121.98,4.0575]
[1741622218806,34.6229112,122.06,121.98,4.0575]
[1741622219003,8.1974,122.03,121.99,8.1992]
[1741622219708,34.6229112,122.06,121.98,47.4375]
[1741622219907,0.05252992,122.02,122.0,0.05618421]
[1741622220207,8.1943,122.07,121.98,47.4375]
[1741622220403,34.6229112,122.1,121.99,34.6229112]
[1741622220609,34.6229112,122.1,121.98,82.0604112]
[1741622220806,34.6229112,122.1,121.99,66.0085]
[1741622221005,34.6229112,122.1,122.0,34.6229112]
[1741622221509,0.06123102,122.06,122.03,0.06028713]
[1741622223609,8.1963,122.04,122.03,0.06028713]
[1741622224810,34.68414222,122.06,122.03,0.06028713]
[1741622225009,0.06123102,122.06,122.03,0.06028713]
[1741622225402,0.06123102,122.06,122.05,8.1956]
[1741622225601,34.6229112,122.12,122.05,4.2426]
[1741622225812,45.87539189,122.16,122.1,8.1921]
[1741622226013,8.191,122.12,122.05,4.2426]
[1741622226207,34.6229112,122.14,122.05,4.2426]
[1741622226714,0.0533947,122.11,122.08,0.06080356]
[1741622227211,8.1929,122.09,122.08,0.06080356]
[1741622227611,0.0533947,122.11,122.08,0.06080356]
[1741622228210,8.1929,122.09,122.08,0.06080356]
[1741622229011,0.0533947,122.11,122.08,0.06080356]
[1741622230405,8.1929,122.09,122.08,0.06080356]
[1741622231506,43.3933947,122.11,122.08,0.06080356]
[1741622231918,0.0533947,122.11,122.08,0.06080356]
[1741622232815,34.6229112,122.14,122.08,0.06080356]
[1741622232816,270.3,122.17,122.08,0.06080356]
[1741622233011,8.1892,122.15,122.08,4.1555]
[1741622233211,270.3,122.17,122.08,4.1555]
[1741622233415,54.57248069,122.19,122.08,38.7784112]
[1741622233616,8.1875,122.18,122.08,38.7784112]
[1741622233811,54.57248069,122.19,122.08,38.7784112]
[1741622234216,0.05390238,122.14,122.12,0.06261137]
[1741622234418,11.25248069,122.19,122.12,0.06261137]
[1741622234609,19.43918069,122.19,122.14,8.1895]
[1741622234815,11.25248069,122.18,122.14,8.1895]
[1741622235014,11.25248069,122.18,122.11,43.32]
[1741622235220,4.69608069,122.18,122.12,34.6229112]
[1741622235517,0.05310528,122.16,122.14,0.0617717]
[1741622237319,4.69608069,122.18,122.14,0.0617717]
[1741622237519,34.6229112,122.21,122.14,0.0617717]
[1741622238127,47.2939,122.23,122.14,0.0617717]
[1741622238325,8.1852,122.21,122.16,8.1878]
[1741622238526,0.0539812,122.2,122.17,0.05211008]
[1741622238825,8.1852,122.21,122.17,0.05211008]
[1741622239028,0.05277765,122.2,122.17,0.05211008]
[1741622241526,0.05277765,122.2,122.17,8.23921008]
[1741622241727,0.05277765,122.2,122.17,0.05211008]
[1741622242934,0.05277765,122.2,122.18,8.1869]
[1741622243226,0.05277765,122.2,122.17,0.05211008]
[1741622243426,0.05277765,122.2,122.17,8.23941008]
[1741622243631,0.05277765,122.2,122.17,0.05211008]
[1741622245234,0.05277765,122.2,122.17,8.23931008]
[1741622245533,0.05277765,122.2,122.17,0.05211008]
[1741622246334,34.67568885,122.2,122.17,0.05211008]
[1741622246837,0.05277765,122.2,122.17,0.05211008]
[1741622247239,8.23867765,122.2,122.17,0.05211008]
[1741622247444,0.05277765,122.2,122.17,0.05211008]
[1741622248446,8.1862,122.19,122.17,0.05211008]
[1741622248843,0.05277765,122.2,122.17,0.05211008]
[1741622249040,8.23867765,122.2,122.17,0.05211008]
[1741622249439,0.05277765,122.2,122.17,0.05211008]
[1741622252246,0.05277765,122.2,122.17,8.23931008]
[1741622252452,0.05277765,122.2,122.17,0.05211008]
[1741622253741,8.1826,122.25,122.17,0.05211008]
[1741622253943,34.6229112,122.26,122.17,0.05211008]
[1741622254250,34.6229112,122.26,122.16,38.8989112]
[1741622254849,42.8047112,122.26,122.16,38.8989112]
[1741622255049,0.06228458,122.22,122.2,0.05976533]
[1741622255350,97.79306068,122.34,122.2,0.05976533]
[1741622255549,34.6229112,122.3,122.2,8.09046533]
[1741622255745,34.6229112,122.3,122.2,8.0307]
[1741622255952,8.1798,122.29,122.24,8.1824]
[1741622256252,34.6229112,122.3,122.2,42.6536112]
[1741622256549,0.02146066,122.26,122.24,0.05390345]
[1741622256740,43.18,122.31,122.2,42.6536112]
[1741622256947,34.6229112,122.3,122.24,0.05803025]
[1741622257145,0.02146066,122.26,122.24,0.05803025]
[1741622257341,34.6229112,122.28,122.24,0.05803025]
[1741622257551,0.02146066,122.26,122.24,0.05803025]
[1741622257852,34.64437186,122.26,122.16,4.276]
[1741622258152,34.6229112,122.24,122.16,47.436]
[1741622258350,43.16,122.25,122.16,47.436]
[1741622258351,34.6229112,122.22,122.16,47.436]
[1741622258552,8.1852,122.21,122.16,47.436]
[1741622258745,34.6229112,122.22,122.16,47.436]
[1741622258948,0.06278314,122.2,122.17,0.05590058]
[1741622259153,0.06278314,122.2,122.16,47.436]
[1741622259349,0.06278314,122.2,122.17,0.05721049]
[1741622260357,0.06278314,122.2,122.18,8.1869]
[1741622260645,0.06278314,122.2,122.17,0.05721049]
[1741622260850,0.06278314,122.2,122.19,8.1862]
[1741622261453,4.4249,122.27,122.17,0.05721049]
[1741622261646,4.2383,122.27,122.16,82.0589112]
[1741622261841,8.1818,122.26,122.17,1.45875714]
[1741622262051,4.2383,122.27,122.17,1.45875714]
[1741622262352,4.2383,122.27,122.16,82.0589112]
[1741622262646,270.0,122.28,122.21,0.05283935]
[1741622262854,43.14,122.29,122.21,0.05283935]
[1741622263151,34.8045112,122.3,122.21,8.6828]
[1741622263453,8.1804,122.28,122.24,8.24100279]
[1741622263754,275.0671,122.33,122.24,8.24100279]
[1741622263755,318.2071,122.33,122.24,43.19870279]
[1741622263948,34.00184208,122.36,122.26,34.6229112]
[1741622264145,38.27274208,122.36,122.3,0.05926094]
[1741622265053,8.1766,122.34,122.3,0.05926094]
[1741622265554,81.14834208,122.36,122.3,0.05926094]
[1741622265745,8.1766,122.34,122.3,0.05926094]
[1741622267257,8.1766,122.34,122.3,8.23796094]
[1741622268049,47.3909,122.36,122.3,0.05926094]
[1741622268356,34.6229112,122.35,122.3,0.05926094]
[1741622268752,8.1776,122.32,122.3,0.05926094]
[1741622268954,34.6229112,122.33,122.3,0.05926094]
[1741622269256,8.1811,122.27,122.25,4.0535]